fUSD/lending_fUSD_20240329
["ID","MTS","AMOUNT","RATE_DAILY","PERIOD"]
[320928972,1711715476467,-837.52,0.00053972,120]
[320928973,1711715476478,-1445.92,0.00053972,120]
[320928974,1711715476488,-865.91,0.00053972,120]
[320928975,1711715476497,-4401.0,0.00053972,120]
[320928976,1711715476506,-618.06,0.00053972,120]
[320928977,1711715476515,-11946.25,0.00053972,120]
[320928978,1711715476524,-553.68,0.00053972,120]
[320928979,1711715476533,-536.07,0.00053972,120]
[320928980,1711715476543,-749.63,0.00053972,120]
[320928981,1711715476552,-970.01,0.00053972,120]
[320928982,1711715476562,-989.16,0.00053972,120]
[320928983,1711715476571,-1295.72,0.00053972,120]
[320928984,1711715476583,-1210.99,0.00053972,120]
[320928985,1711715476593,-500.0,0.00053972,120]
[320928986,1711715476602,-1766.07,0.00053972,120]
[320928987,1711715476612,-803.36,0.00053972,120]
[320928988,1711715476621,-607.41,0.00053972,120]
[320928989,1711715476630,-1040.75,0.00053972,120]
[320928990,1711715476640,-591.93,0.00053972,120]
[320928991,1711715476649,-500.0,0.00053972,120]
[320928992,1711715476659,-974.57,0.00053972,120]
[320928993,1711715476669,-500.0,0.00053972,120]
[320928994,1711715476678,-937.75,0.00053972,120]
[320928995,1711715476687,-7631.65,0.00053972,120]
[320928996,1711715476696,-547.15,0.00053972,120]
[320928997,1711715476706,-849.68,0.00053972,120]
[320928998,1711715476715,-1598.48,0.00053972,120]
[320928999,1711715476724,-530.07,0.00053972,120]
[320929000,1711715476735,-544.49,0.00053972,120]
[320929001,1711715476744,-1844.98,0.00053972,120]
[320929002,1711715476754,-521.32,0.00053972,120]
[320929003,1711715476763,-600.49,0.00053972,120]
[320929004,1711715476772,-725.02,0.00053972,120]
[320929005,1711715476781,-997.33,0.00053972,120]
[320929006,1711715476790,-532.33,0.00053972,120]
[320929007,1711715476799,-2494.86,0.00053972,120]
[320929008,1711715476809,-635.78,0.00053972,120]
[320929009,1711715476818,-500.0,0.00053972,120]
[320929010,1711715476828,-854.79,0.00053972,21]
[320929011,1711715476837,-986.55,0.00053972,120]
[320929012,1711715476847,-2139.57,0.00053972,120]
[320929013,1711715476856,-500.0,0.00053972,120]
[320929014,1711715476866,-947.88,0.00053972,120]
[320929015,1711715476876,-922.26,0.00053972,120]
[320929016,1711715476885,-809.13,0.00053972,120]
[320929017,1711715476894,-555.49,0.00053972,120]
[320929018,1711715476903,-500.0,0.00053972,120]
[320929019,1711715476912,-1496.84,0.00053972,120]
[320929020,1711715476922,-1713.03,0.00053972,120]
[320929021,1711715476932,-714.32,0.00053972,120]
[320929022,1711715476942,-652.78,0.00053972,120]
[320929023,1711715476951,-525.31,0.00053972,120]
[320929024,1711715476961,-599.43,0.00053972,120]
[320929025,1711715476971,-513.23,0.00053972,120]
[320929026,1711715476982,-500.0,0.00053972,120]
[320929027,1711715476992,-1171.13,0.00053972,120]
[320929028,1711715477002,-594.44,0.00053972,120]
[320929029,1711715477015,-2019.49,0.00053972,120]
[320929030,1711715477026,-525.7,0.00053972,120]
[320929031,1711715477036,-500.0,0.00053972,120]
[320929032,1711715477046,-556.54,0.00053972,120]
[320929033,1711715477055,-699.71,0.00053972,120]
[320929034,1711715477065,-500.0,0.00053972,120]
[320929035,1711715477075,-200.0,0.00053987,2]
[320929036,1711715477085,-200.0,0.00053987,3]
[320929037,1711715477094,-2514.00526859,0.00053998,66]
[320929038,1711715477105,-100000.0,0.00054,54]
[320929039,1711715477114,-20000.0,0.00054,120]
[320929040,1711715477123,-200.0,0.00054,120]
[320929041,1711715477132,-173.23,0.00054,2]
[320929042,1711715477141,-255.0,0.00054,120]
[320929043,1711715477150,-34129.95193651,0.00054,120]
[320929044,1711715477160,-233.23453321,0.00054,120]
[320929045,1711715477169,-190.17276354,0.00054,120]
[320929046,1711715477178,-3712.37049901,0.00054,30]
[320929047,1711715477187,-275179.98305742,0.00054,2]
[320929048,1711715477197,-500.0,0.00054,120]
[320929049,1711715477207,-3244.28987937,0.00054,30]
[320929050,1711715477216,-10000.0,0.00054,30]
[320929051,1711715477224,-271119.77717463,0.00054,2]
[320929052,1711715477235,-308.43333333,0.00054027,120]
[320929053,1711715477244,-500.0,0.00054047,120]
[320929054,1711715477254,-500.0,0.0005409,120]
[320929055,1711715477263,-240.64720123,0.0005414,99]
[320929056,1711715477272,-19884.37747657,0.00054146,7]
[320929057,1711715477281,-173.032921,0.00054148,110]
[320929058,1711715477290,-5800.0,0.00054174,7]
[320929059,1711715477299,-5800.0,0.00054183,7]
[320929060,1711715477308,-5800.0,0.00054191,7]
[320929061,1711715477317,-500.0,0.00054197,120]
[320929062,1711715477326,-151.032716,0.00054198,106]
[320929063,1711715477335,-5800.0,0.000542,7]
[320929064,1711715477344,-460.0,0.000542,40]
[320929065,1711715477353,-5800.0,0.000542,7]
[320929066,1711715477362,-283.59317618,0.00054244,4]
[320929067,1711715477371,-500.0,0.00054246,30]
[320929068,1711715477380,-1672.16,0.00054246,120]
[320929069,1711715477390,-740.46,0.00054246,120]
[320929070,1711715477398,-522.88,0.00054246,120]
[320929071,1711715477408,-525.02,0.00054246,120]
[320929072,1711715477417,-1085.74,0.00054246,120]
[320929073,1711715477426,-930.68,0.00054246,120]
[320929074,1711715477435,-1247.64,0.00054246,120]
[320929075,1711715477444,-500.0,0.00054246,120]
[320929076,1711715477453,-637.35,0.00054246,120]
[320929077,1711715477463,-2186.22,0.00054246,120]
[320929078,1711715477472,-1025.85,0.00054246,120]
[320929079,1711715477484,-1080.64,0.00054246,120]
[320929080,1711715477493,-2210.32,0.00054246,120]
[320929081,1711715477503,-813.7,0.00054246,120]
[320929082,1711715477512,-500.0,0.00054246,120]
[320929083,1711715477521,-5519.83,0.00054246,120]
[320929084,1711715477530,-644.49,0.00054246,120]
[320929085,1711715477540,-500.0,0.00054246,120]
[320929086,1711715477549,-522.99,0.00054246,120]
[320929087,1711715477559,-1098.18,0.00054246,120]
[320929088,1711715477568,-744.47,0.00054246,120]
[320929089,1711715477577,-532.08,0.00054246,120]
[320929090,1711715477586,-815.77,0.00054246,120]
[320929091,1711715477595,-1398.69,0.00054246,120]
[320929092,1711715477605,-500.0,0.00054246,120]
[320929093,1711715477614,-500.0,0.00054246,120]
[320929094,1711715477623,-2306.29,0.00054246,120]
[320929095,1711715477632,-1134.32,0.00054246,120]
[320929096,1711715477640,-906.41,0.00054246,120]
[320929097,1711715477649,-2037.34,0.00054246,120]
[320929098,1711715477658,-897.77,0.00054246,120]
[320929099,1711715477667,-831.59,0.00054246,120]
[320929100,1711715477677,-837.52,0.00054246,120]
[320929101,1711715477686,-1445.92,0.00054246,120]
[320929102,1711715477695,-865.91,0.00054246,120]
[320929103,1711715477703,-4401.0,0.00054246,120]
[320929104,1711715477712,-618.06,0.00054246,120]
[320929105,1711715477721,-11946.25,0.00054246,120]
[320929106,1711715477732,-553.68,0.00054246,120]
[320929107,1711715477741,-536.07,0.00054246,120]
[320929108,1711715477751,-749.63,0.00054246,120]
[320929109,1711715477760,-989.16,0.00054246,120]
[320929110,1711715477769,-970.01,0.00054246,120]
[320929111,1711715477779,-1295.72,0.00054246,120]
[320929112,1711715477789,-1210.99,0.00054246,120]
[320929113,1711715477799,-500.0,0.00054246,120]
[320929114,1711715477808,-1766.07,0.00054246,120]
[320929115,1711715477818,-803.36,0.00054246,120]
[320929116,1711715477828,-607.41,0.00054246,120]
[320929117,1711715477838,-1040.75,0.00054246,120]
[320929118,1711715477847,-591.93,0.00054246,120]
[320929119,1711715477857,-500.0,0.00054246,120]
[320929120,1711715477867,-974.57,0.00054246,120]
[320929121,1711715477876,-500.0,0.00054246,120]
[320929122,1711715477885,-937.75,0.00054246,120]
[320929123,1711715477894,-7631.65,0.00054246,120]
[320929124,1711715477904,-547.15,0.00054246,120]
[320929125,1711715477913,-849.68,0.00054246,120]
[320929126,1711715477923,-1598.48,0.00054246,120]
[320929127,1711715477932,-530.07,0.00054246,120]
[320929128,1711715477942,-544.49,0.00054246,120]
[320929129,1711715477951,-1844.98,0.00054246,120]
[320929130,1711715477960,-521.32,0.00054246,120]
[320929131,1711715477969,-600.49,0.00054246,120]
[320929132,1711715477981,-725.02,0.00054246,120]
[320929133,1711715477990,-997.33,0.00054246,120]
[320929134,1711715477999,-532.33,0.00054246,120]
[320929135,1711715478010,-2494.86,0.00054246,120]
[320929136,1711715478020,-635.78,0.00054246,120]
[320929137,1711715478030,-500.0,0.00054246,120]
[320929138,1711715478040,-854.79,0.00054246,21]
[320929139,1711715478050,-986.55,0.00054246,120]
[320929140,1711715478059,-2139.57,0.00054246,120]
[320929141,1711715478070,-500.0,0.00054246,120]
[320929142,1711715478080,-947.88,0.00054246,120]
[320929143,1711715478089,-922.26,0.00054246,120]
[320929144,1711715478100,-809.13,0.00054246,120]
[320929145,1711715478111,-555.49,0.00054246,120]
[320929146,1711715478120,-500.0,0.00054246,120]
[320929147,1711715478130,-1496.84,0.00054246,120]
[320929148,1711715478140,-1713.03,0.00054246,120]
[320929149,1711715478149,-714.32,0.00054246,120]
[320929150,1711715478159,-652.78,0.00054246,120]
[320929151,1711715478169,-525.31,0.00054246,120]
[320929152,1711715478179,-599.43,0.00054246,120]
[320929153,1711715478189,-513.23,0.00054246,120]
[320929154,1711715478199,-500.0,0.00054246,120]
[320929155,1711715478209,-1171.13,0.00054246,120]
[320929156,1711715478219,-1412.38,0.00054246,120]
[320929157,1711715478230,-594.44,0.00054246,120]
[320929158,1711715478241,-2019.49,0.00054246,120]
[320929159,1711715478251,-525.7,0.00054246,120]
[320929160,1711715478260,-500.0,0.00054246,120]
[320929161,1711715478270,-556.54,0.00054246,120]
[320929162,1711715478279,-699.71,0.00054246,120]
[320929163,1711715478289,-329.3242811,0.00054246,120]
[320929164,1711715478298,-162.21511491,0.00054278,60]
[320929165,1711715478307,-158.50381599,0.00054324,60]
[320929166,1711715478317,-500.0,0.00054346,120]
[320929167,1711715478455,-157.032921,0.00054348,114]
[320929168,1711715478465,-965.23,0.0005438,120]
[320929169,1711715478476,-439.95652199,0.000544,110]
[320929170,1711715478486,-158.50381601,0.00054427,60]
[320929171,1711715478494,-161.032921,0.00054448,113]
[320929172,1711715478503,-151.032919,0.00054448,116]
[320929173,1711715478513,-272.84,0.00054466,120]
[320929174,1711715478523,-10255.3065951,0.0005448,30]
[320929175,1711715478697,-4744.6934049,0.0005448,30]
[320929176,1711715478707,-151.0,0.00054493,120]
[320929177,1711715478716,-500.0,0.00054496,120]
[320929178,1711715478727,-151.032713,0.00054498,107]
[320929179,1711715478736,-250.0,0.000545,120]
[320929180,1711715478746,-1000.0,0.000545,7]
[320929181,1711715478755,-2122.92,0.00054504,85]
[320929182,1711715478765,-1009.3,0.00054515,2]
[320929183,1711715478774,-500.0,0.0005452,120]
[320929184,1711715478783,-500.0,0.0005452,30]
[320929185,1711715478792,-1672.16,0.0005452,120]
[320929186,1711715478801,-740.46,0.0005452,120]
[320929187,1711715478810,-522.88,0.0005452,120]
[320929188,1711715478820,-525.02,0.0005452,120]
[320929189,1711715478829,-1085.74,0.0005452,120]
[320929190,1711715478838,-930.68,0.0005452,120]
[320929191,1711715478847,-1247.64,0.0005452,120]
[320929192,1711715478856,-500.0,0.0005452,120]
[320929193,1711715478867,-637.35,0.0005452,120]
[320929194,1711715478876,-2186.22,0.0005452,120]
[320929195,1711715478886,-1025.85,0.0005452,120]
[320929196,1711715478897,-1080.64,0.0005452,120]
[320929197,1711715478907,-2210.32,0.0005452,120]
[320929198,1711715478917,-813.7,0.0005452,120]
[320929199,1711715478926,-500.0,0.0005452,120]
[320929200,1711715478936,-5519.83,0.0005452,120]
[320929201,1711715478945,-644.49,0.0005452,120]
[320929202,1711715478955,-323.19163209,0.0005452,120]
[320929203,1711715478964,-522.99,0.0005452,120]
[320929204,1711715478974,-1098.18,0.0005452,120]
[320929205,1711715478987,-744.47,0.0005452,120]
[320929206,1711715478997,-532.08,0.0005452,120]
[320929207,1711715479008,-815.77,0.0005452,120]
[320929208,1711715479018,-1398.69,0.0005452,120]
[320929209,1711715479029,-500.0,0.0005452,120]
[320929210,1711715479038,-500.0,0.0005452,120]
[320929211,1711715479049,-2306.29,0.0005452,120]
[320929212,1711715479058,-1134.32,0.0005452,120]
[320929213,1711715479068,-906.41,0.0005452,120]
[320929214,1711715479078,-2037.34,0.0005452,120]
[320929215,1711715479089,-897.77,0.0005452,120]
[320929216,1711715479099,-831.59,0.0005452,120]
[320929217,1711715479110,-837.52,0.0005452,120]
[320929218,1711715479121,-1445.92,0.0005452,120]
[320929219,1711715479132,-865.91,0.0005452,120]
[320929220,1711715479142,-4401.0,0.0005452,120]
[320929221,1711715479152,-618.06,0.0005452,120]
[320929222,1711715479163,-11946.25,0.0005452,120]
[320929223,1711715479174,-553.68,0.0005452,120]
[320929224,1711715479186,-536.07,0.0005452,120]
[320929225,1711715479196,-749.63,0.0005452,120]
[320929226,1711715479205,-989.16,0.0005452,120]
[320929227,1711715479215,-970.01,0.0005452,120]
[320929228,1711715479225,-1295.72,0.0005452,120]
[320929229,1711715479240,-1210.99,0.0005452,120]
[320929230,1711715479250,-500.0,0.0005452,120]
[320929231,1711715479260,-1766.07,0.0005452,120]
[320929232,1711715479270,-803.36,0.0005452,120]
[320929233,1711715479280,-607.41,0.0005452,120]
[320929234,1711715479290,-1040.75,0.0005452,120]
[320929235,1711715479301,-591.93,0.0005452,120]
[320929236,1711715479311,-500.0,0.0005452,120]
[320929237,1711715479321,-974.57,0.0005452,120]
[320929238,1711715479332,-294.05090353,0.0005452,120]
[320929239,1711715479341,-937.75,0.0005452,120]
[320929240,1711715479351,-7631.65,0.0005452,120]
[320929241,1711715479363,-547.15,0.0005452,120]
[320929242,1711715479372,-849.68,0.0005452,120]
[320929243,1711715479382,-1598.48,0.0005452,120]
[320929244,1711715479391,-530.07,0.0005452,120]
[320929245,1711715479402,-544.49,0.0005452,120]
[320929246,1711715479412,-1844.98,0.0005452,120]
[320929247,1711715479422,-521.32,0.0005452,120]
[320929248,1711715479432,-600.49,0.0005452,120]
[320929249,1711715479441,-725.02,0.0005452,120]
[320929250,1711715479451,-997.33,0.0005452,120]
[320929251,1711715479460,-532.33,0.0005452,120]
[320929252,1711715479470,-2494.86,0.0005452,120]
[320929253,1711715479484,-635.78,0.0005452,120]
[320929254,1711715479497,-500.0,0.0005452,120]
[320929255,1711715479507,-854.79,0.0005452,21]
[320929256,1711715479518,-986.55,0.0005452,120]
[320929257,1711715479527,-2139.57,0.0005452,120]
[320929258,1711715479538,-500.0,0.0005452,120]
[320929259,1711715479548,-922.26,0.0005452,120]
[320929260,1711715479559,-947.88,0.0005452,120]
[320929261,1711715479569,-809.13,0.0005452,120]
[320929262,1711715479578,-555.49,0.0005452,120]
[320929263,1711715479588,-500.0,0.0005452,120]
[320929264,1711715479603,-1496.84,0.0005452,120]
[320929265,1711715479621,-1713.03,0.0005452,120]
[320929266,1711715479637,-714.32,0.0005452,120]
[320929267,1711715479651,-652.78,0.0005452,120]
[320929268,1711715479667,-525.31,0.0005452,120]
[320929269,1711715479686,-599.43,0.0005452,120]
[320929270,1711715479701,-513.23,0.0005452,120]
[320929271,1711715479715,-500.0,0.0005452,120]
[320929272,1711715479734,-1171.13,0.0005452,120]
[320929273,1711715479749,-594.44,0.0005452,120]
[320929274,1711715479765,-2019.49,0.0005452,120]
[320929275,1711715479778,-525.7,0.0005452,120]
[320929276,1711715479796,-500.0,0.0005452,120]
[320929277,1711715479812,-556.54,0.0005452,120]
[320929278,1711715479826,-699.71,0.0005452,120]
[320929279,1711715479840,-154.69988666,0.00054557,60]
[320929280,1711715479856,-2375.05700634,0.00054584,31]
[320929281,1711715479872,-906.23268966,0.000546,30]
[320929282,1711715479889,-208.03707595,0.000546,7]
[320929283,1711715479904,-308.43333333,0.0005463,120]
[320929284,1711715479915,-500.0,0.00054645,120]
[320929285,1711715479931,-314.82,0.0005465,2]
[320929286,1711715479944,-599.50654082,0.00054674,2]
[320929287,1711715479958,-3345.5456445,0.000547,2]
[320929288,1711715479970,-460.0,0.000547,40]
[320929289,1711715479985,-161.032921,0.00054748,113]
[320929290,1711715479999,-108133.0,0.0005477,120]
[320929291,1711715480013,-500.0,0.00054794,120]
[320929292,1711715480027,-500.0,0.00054794,30]
[320929293,1711715480041,-666.0,0.00054794,120]
[320929294,1711715480055,-1061.14085781,0.00054794,120]
[320929295,1711715480068,-1000.0,0.00054794,120]
[320929296,1711715480082,-1000.0,0.00054794,120]
[320929297,1711715480096,-1000.0,0.00054794,120]
[320929298,1711715480110,-1000.0,0.00054794,120]
[320929299,1711715480124,-1000.0,0.00054794,120]
[320929300,1711715480138,-1113.94863823,0.00054794,120]
[320929301,1711715480152,-1672.16,0.00054794,120]
[320929302,1711715480166,-740.46,0.00054794,120]
[320929303,1711715480182,-522.88,0.00054794,120]
[320929304,1711715480196,-1000.0,0.00054794,120]
[320929305,1711715480205,-1000.0,0.00054794,120]
[320929306,1711715480216,-1019.27363398,0.00054794,120]
[320929307,1711715480225,-1256.8,0.00054794,120]
[320929308,1711715480237,-1256.8,0.00054794,120]
[320929309,1711715480246,-1256.8,0.00054794,120]
[320929310,1711715480255,-1256.8,0.00054794,120]
[320929311,1711715480265,-1256.8,0.00054794,120]
[320929312,1711715480274,-1256.8,0.00054794,120]
[320929313,1711715480284,-1256.8,0.00054794,120]
[320929314,1711715480293,-1256.8,0.00054794,120]
[320929315,1711715480303,-1256.8,0.00054794,120]
[320929316,1711715480312,-1256.8,0.00054794,120]
[320929317,1711715480323,-1256.8,0.00054794,120]
[320929318,1711715480331,-1256.8,0.00054794,120]
[320929319,1711715480341,-1256.8,0.00054794,120]
[320929320,1711715480350,-1256.8,0.00054794,120]
[320929321,1711715480360,-1256.8,0.00054794,120]
[320929322,1711715480370,-1256.8,0.00054794,120]
[320929323,1711715480379,-1256.8,0.00054794,120]
[320929324,1711715480388,-1256.8,0.00054794,120]
[320929325,1711715480398,-1256.8,0.00054794,120]
[320929326,1711715480407,-1256.8,0.00054794,120]
[320929327,1711715480416,-1256.8,0.00054794,120]
[320929328,1711715480426,-525.02,0.00054794,120]
[320929329,1711715480436,-500.0,0.00054794,120]
[320929330,1711715480446,-500.0,0.00054794,120]
[320929331,1711715480456,-500.0,0.00054794,120]
[320929332,1711715480465,-500.0,0.00054794,120]
[320929333,1711715480475,-500.0,0.00054794,120]
[320929334,1711715480486,-500.0,0.00054794,120]
[320929335,1711715480496,-500.0,0.00054794,120]
[320929336,1711715480507,-500.0,0.00054794,120]
[320929337,1711715480517,-263.85132664,0.00054794,120]
[320929338,1711715480527,-1085.74,0.00054794,120]
[320929339,1711715480537,-930.68,0.00054794,120]
[320929340,1711715480548,-1247.64,0.00054794,120]
[320929341,1711715480559,-500.0,0.00054794,120]
[320929342,1711715480568,-637.35,0.00054794,120]
[320929343,1711715480579,-2186.22,0.00054794,120]
[320929344,1711715480589,-1025.85,0.00054794,120]
[320929345,1711715480599,-1080.64,0.00054794,120]
[320929346,1711715480610,-2210.32,0.00054794,120]
[320929347,1711715480620,-813.7,0.00054794,120]
[320929348,1711715480630,-500.0,0.00054794,120]
[320929349,1711715480641,-5519.83,0.00054794,120]
[320929350,1711715480651,-644.49,0.00054794,120]
[320929351,1711715480661,-522.99,0.00054794,120]
[320929352,1711715480670,-1098.18,0.00054794,120]
[320929353,1711715480680,-744.47,0.00054794,120]
[320929354,1711715480690,-532.08,0.00054794,120]
[320929355,1711715480700,-815.77,0.00054794,120]
[320929356,1711715480709,-1398.69,0.00054794,120]
[320929357,1711715480720,-500.0,0.00054794,120]
[320929358,1711715480732,-392.72834859,0.00054794,120]
[320929359,1711715480742,-2306.29,0.00054794,120]
[320929360,1711715480752,-1134.32,0.00054794,120]
[320929361,1711715480762,-906.41,0.00054794,120]
[320929362,1711715480772,-2037.34,0.00054794,120]
[320929363,1711715480782,-897.77,0.00054794,120]
[320929364,1711715480792,-831.59,0.00054794,120]
[320929365,1711715480801,-837.52,0.00054794,120]
[320929366,1711715480811,-1445.92,0.00054794,120]
[320929367,1711715480821,-865.91,0.00054794,120]
[320929368,1711715480831,-4401.0,0.00054794,120]
[320929369,1711715480840,-618.06,0.00054794,120]
[320929370,1711715480850,-11946.25,0.00054794,120]
[320929371,1711715480860,-553.68,0.00054794,120]
[320929372,1711715480869,-536.07,0.00054794,120]
[320929373,1711715480879,-749.63,0.00054794,120]
[320929374,1711715480889,-989.16,0.00054794,120]
[320929375,1711715480898,-970.01,0.00054794,120]
[320929376,1711715480908,-300.6563706,0.00054794,120]
[320929377,1711715480919,-1295.72,0.00054794,120]
[320929378,1711715480929,-1210.99,0.00054794,120]
[320929379,1711715480939,-294.59210368,0.00054794,120]
[320929380,1711715480949,-1766.07,0.00054794,120]
[320929381,1711715481397,-803.36,0.00054794,120]
[320929382,1711715481409,-607.41,0.00054794,120]
[320929383,1711715481420,-1040.75,0.00054794,120]
[320929384,1711715481430,-591.93,0.00054794,120]
[320929385,1711715481439,-500.0,0.00054794,120]
[320929386,1711715481449,-974.57,0.00054794,120]
[320929387,1711715481458,-937.75,0.00054794,120]
[320929388,1711715481468,-7631.65,0.00054794,120]
[320929389,1711715481477,-547.15,0.00054794,120]
[320929390,1711715481489,-849.68,0.00054794,120]
[320929391,1711715481498,-1598.48,0.00054794,120]
[320929392,1711715481508,-530.07,0.00054794,120]
[320929393,1711715481517,-544.49,0.00054794,120]
[320929394,1711715481527,-500.0,0.00054794,120]
[320929395,1711715481536,-314.17176105,0.00054794,120]
[320929396,1711715481546,-1844.98,0.00054794,120]
[320929397,1711715481556,-521.32,0.00054794,120]
[320929398,1711715481565,-600.49,0.00054794,120]
[320929399,1711715481575,-725.02,0.00054794,120]
[320929400,1711715481584,-997.33,0.00054794,120]
[320929401,1711715481593,-532.33,0.00054794,120]
[320929402,1711715481603,-2494.86,0.00054794,120]
[320929403,1711715481612,-635.78,0.00054794,120]
[320929404,1711715481622,-500.0,0.00054794,120]
[320929405,1711715481631,-854.79,0.00054794,21]
[320929406,1711715481640,-986.55,0.00054794,120]
[320929407,1711715481649,-2139.57,0.00054794,120]
[320929408,1711715481659,-500.0,0.00054794,120]
[320929409,1711715481668,-922.26,0.00054794,120]
[320929410,1711715481677,-947.88,0.00054794,120]
[320929411,1711715481687,-809.13,0.00054794,120]
[320929412,1711715481696,-555.49,0.00054794,120]
[320929413,1711715481706,-500.0,0.00054794,120]
[320929414,1711715481716,-1496.84,0.00054794,120]
[320929415,1711715481725,-1713.03,0.00054794,120]
[320929416,1711715481736,-714.32,0.00054794,120]
[320929417,1711715481746,-652.78,0.00054794,120]
[320929418,1711715481755,-525.31,0.00054794,120]
[320929419,1711715481765,-599.43,0.00054794,120]
[320929420,1711715481775,-513.23,0.00054794,120]
[320929421,1711715481785,-604.92179892,0.00054794,120]
[320929422,1711715481795,-1171.13,0.00054794,120]
[320929423,1711715481804,-594.44,0.00054794,120]
[320929424,1711715481814,-2019.49,0.00054794,120]
[320929425,1711715481823,-500.0,0.00054794,120]
[320929426,1711715481832,-525.7,0.00054794,120]
[320929427,1711715481842,-556.54,0.00054794,120]
[320929428,1711715481851,-699.71,0.00054794,120]
[320929429,1711715481860,-7001.0,0.00054795,120]
[320929430,1711715481869,-733.17030467,0.00054795,120]
[320929431,1711715481878,-500.0,0.00054795,120]
[320929432,1711715481887,-500.0,0.00054795,120]
[320929433,1711715481896,-500.0,0.00054795,120]
[320929434,1711715481905,-500.0,0.00054795,120]
[320929435,1711715481914,-500.0,0.00054795,120]
[320929436,1711715481924,-500.0,0.00054795,120]
[320929437,1711715481932,-500.0,0.00054795,120]
[320929438,1711715481942,-500.0,0.00054795,120]
[320929439,1711715481951,-500.0,0.00054795,120]
[320929440,1711715481960,-500.0,0.00054795,120]
[320929441,1711715481969,-500.0,0.00054795,120]
[320929442,1711715481982,-500.0,0.00054795,120]
[320929443,1711715481995,-503.0,0.00054795,120]
[320929444,1711715482004,-1000.0,0.00054795,13]
[320929445,1711715482017,-1000.0,0.00054795,13]
[320929446,1711715482028,-1000.0,0.00054795,13]
[320929447,1711715482037,-1000.0,0.00054795,13]
[320929448,1711715482047,-1000.0,0.00054795,13]
[320929449,1711715482056,-500.0,0.00054795,120]
[320929450,1711715482065,-500.0,0.00054795,120]
[320929451,1711715482075,-500.0,0.00054795,120]
[320929452,1711715482084,-500.0,0.00054795,120]
[320929453,1711715482095,-500.0,0.00054795,120]
[320929454,1711715482105,-500.0,0.00054795,120]
[320929455,1711715482114,-500.0,0.00054795,120]
[320929456,1711715482124,-500.0,0.00054795,120]
[320929457,1711715482134,-500.0,0.00054795,120]
[320929458,1711715482143,-500.0,0.00054795,120]
[320929459,1711715482152,-500.0,0.00054795,120]
[320929460,1711715482161,-500.0,0.00054795,120]
[320929461,1711715482170,-500.0,0.00054795,120]
[320929462,1711715482180,-500.0,0.00054795,120]
[320929463,1711715482190,-500.0,0.00054795,120]
[320929464,1711715482199,-500.0,0.00054795,120]
[320929465,1711715482208,-500.0,0.00054795,120]
[320929466,1711715482217,-1000.0,0.00054795,13]
[320929467,1711715482227,-500.0,0.00054795,120]
[320929468,1711715482240,-500.0,0.00054795,120]
[320929469,1711715482249,-500.0,0.00054795,120]
[320929470,1711715482258,-500.0,0.00054795,120]
[320929471,1711715482267,-1000.0,0.00054795,13]